bitfinex-derivatives/quotes_ETHF0:USTF0_20240930
["timestamp","ask_amount","ask_price","bid_price","bid_amount"]
[1727691521613,3.6021,2606.1,2605.5,0.38377]
[1727691522307,3.6021,2606.1,2605.6,0.38376]
[1727691522515,3.6021,2606.1,2605.3,2.95]
[1727691522916,3.6021,2606.1,2606.0,0.38371]
[1727691523211,3.2078,2606.1,2606.0,0.38371]
[1727691523615,3.9873,2606.7,2606.0,2.95]
[1727691523819,3.9873,2606.7,2604.7,1.7000056]
[1727691523820,3.2078,2606.1,2605.6,0.38376]
[1727691524116,3.2078,2606.1,2605.7,0.38375]
[1727691524913,3.2078,2606.1,2605.3,2.95]
[1727691525227,0.39,2606.0,2605.7,0.38374]
[1727691525721,0.39,2606.0,2605.3,3.90952]
[1727691525914,0.39,2606.0,2605.3,2.95]
[1727691526111,3.2078,2605.8,2605.3,2.95]
[1727691526410,3.2078,2605.8,2605.6,0.38375]
[1727691526621,3.2078,2605.8,2605.7,0.38375]
[1727691527617,3.5968,2606.6,2605.8,0.95935]
[1727691528016,3.5968,2606.6,2606.2,0.38367]
[1727691528210,3.5968,2606.6,2605.7,2.95]
[1727691528523,3.5968,2606.6,2605.9,0.38371]
[1727691528729,3.5968,2606.6,2605.7,2.95]
[1727691528910,3.5968,2606.6,2605.8,0.38372]
[1727691529120,3.5968,2606.6,2605.7,2.95]
[1727691529121,3.5968,2606.6,2606.0,0.3837]
[1727691529419,3.5968,2606.6,2605.7,2.95]
[1727691529420,3.2078,2606.3,2605.9,0.38371]
[1727691529621,3.2078,2606.3,2605.7,2.95]
[1727691529807,3.2078,2606.3,2605.9,0.38371]
[1727691530010,3.2078,2606.3,2606.0,0.3837]
[1727691530619,3.2078,2606.3,2605.8,0.38373]
[1727691530812,3.2078,2606.3,2605.7,3.33374]
[1727691531017,3.2078,2606.3,2605.8,0.38373]
[1727691531423,3.2078,2606.3,2606.0,0.38369]
[1727691531615,3.2078,2606.3,2605.7,2.95]
[1727691531919,2.91922872,2606.4,2605.7,3.90937]
[1727691532220,6.51602872,2606.6,2606.4,0.38365]
[1727691532423,2.91922872,2606.7,2606.4,2.95]
[1727691532719,7.10093017,2607.0,2606.4,2.95]
[1727691532720,6.12702872,2607.0,2606.4,2.95]
[1727691533223,6.12702872,2607.0,2606.6,0.3836]
[1727691533518,6.12702872,2607.0,2606.7,0.3836]
[1727691533717,3.2078,2607.0,2606.4,2.95]
[1727691534114,3.2078,2607.0,2606.7,0.3836]
[1727691534308,3.2078,2607.0,2606.4,2.95]
[1727691534518,3.2078,2607.0,2606.9,0.38357]
[1727691534914,3.04318288,2607.2,2606.8,2.95]
[1727691535114,0.12395416,2607.2,2606.8,2.95]
[1727691535314,3.72222872,2607.4,2606.8,2.95]
[1727691535517,0.803,2607.4,2606.9,0.38356]
[1727691535717,0.803,2607.4,2606.8,3.33358]
[1727691535718,3.72222872,2607.4,2606.8,3.33358]
[1727691536019,3.2078,2607.2,2606.8,3.33358]
[1727691536215,3.2078,2606.9,2605.8,0.38372]
[1727691536420,3.2078,2606.6,2605.7,2.95]
[1727691536619,0.3802,2606.5,2605.7,2.95]
[1727691536823,0.3802,2606.5,2605.8,0.38372]
[1727691537027,0.3802,2606.5,2605.7,2.95]
[1727691537234,0.3802,2606.5,2605.9,0.38371]
[1727691537425,0.3802,2606.5,2605.7,2.95]
[1727691537822,0.3802,2606.5,2605.9,0.38371]
[1727691538028,0.3802,2606.5,2605.8,0.38373]
[1727691538221,3.2078,2606.3,2605.8,0.38373]
[1727691538726,3.2078,2606.3,2605.9,0.38372]
[1727691538927,6.12702872,2606.3,2605.7,2.95]
[1727691539124,6.12702872,2606.3,2606.0,0.3837]
[1727691539629,0.4054,2606.4,2606.0,3.3337]
[1727691539630,3.32462872,2606.4,2606.0,3.3337]
[1727691539831,3.32462872,2606.4,2606.2,0.38368]
[1727691540125,3.32462872,2606.4,2606.0,2.95]
[1727691540324,3.32462872,2606.4,2606.0,3.3337]
[1727691540719,3.32462872,2606.4,2605.6,3.2078]
[1727691540720,2.91922872,2606.3,2605.6,3.2078]
[1727691540920,2.91922872,2606.2,2605.7,2.95]
[1727691541222,3.81836702,2606.4,2605.8,0.38373]
[1727691541223,2.91922872,2606.3,2605.8,0.38373]
[1727691541621,2.91922872,2606.2,2605.7,2.95]
[1727691541826,2.91922872,2606.1,2605.7,3.33375]
[1727691542023,2.91922872,2606.0,2605.7,2.95]
[1727691542333,2.91922872,2606.1,2606.0,0.38371]
[1727691542533,2.91922872,2606.2,2605.7,3.90937]
[1727691543027,2.91922872,2606.2,2606.0,0.3837]
[1727691543225,2.91922872,2606.2,2605.7,3.33375]
[1727691543535,2.91922872,2606.1,2605.7,0.38375]
[1727691543719,2.91922872,2606.0,2605.4,2.95]
[1727691544227,2.91922872,2606.0,2605.5,0.38377]
[1727691544531,2.91922872,2606.0,2605.3,0.3926]
[1727691544532,2.91922872,2605.8,2605.3,0.3926]
[1727691544751,2.91922872,2605.7,2605.5,0.38377]
[1727691545026,2.91922872,2605.7,2605.4,0.38378]
[1727691545529,2.91922872,2605.6,2605.2,0.38382]
[1727691545729,3.29162872,2605.6,2605.0,6.1578]
[1727691545930,3.2078,2605.5,2605.0,3.2078]
[1727691546133,6.12702872,2605.5,2605.0,3.59165]
[1727691546427,3.2078,2605.1,2604.7,0.3741]
[1727691546623,3.2078,2605.1,2604.9,0.38386]
[1727691546819,3.2078,2605.1,2604.7,0.3741]
[1727691547435,3.2078,2605.1,2605.0,0.38385]
[1727691547930,0.3724,2605.6,2605.3,0.3838]
[1727691548122,0.3724,2605.6,2604.9,2.95]
[1727691548325,2.91922872,2606.1,2605.6,0.38376]
[1727691548326,3.2078,2606.1,2605.6,0.38376]
[1727691548630,3.9691,2606.1,2605.5,0.38377]
[1727691548931,3.9691,2606.1,2605.3,2.95]
[1727691548932,3.9691,2606.1,2605.6,0.38376]
[1727691549131,0.38373,2605.9,2605.6,0.38376]
[1727691549527,0.38373,2605.9,2605.3,2.95]
[1727691549528,3.9691,2606.1,2605.3,2.95]
[1727691549732,0.38375,2605.7,2605.4,0.38379]
[1727691549927,3.9691,2606.1,2605.3,2.95]
[1727691550232,3.2078,2605.5,2604.9,0.38386]
[1727691550434,0.95957,2605.3,2604.7,0.75799]
[1727691550626,0.38384,2605.1,2604.9,0.38386]
[1727691550826,0.38384,2605.1,2604.8,0.38387]
[1727691551134,0.38386,2605.0,2604.7,0.75799]
[1727691551529,0.38386,2605.0,2603.9,0.96003]
[1727691551530,3.2078,2605.2,2603.9,3.91003]
[1727691551738,3.2078,2605.2,2604.3,0.38394]
[1727691551739,0.38392,2604.6,2604.3,0.38394]
[1727691552125,4.1675,2604.9,2604.3,0.38394]
[1727691552331,0.95971,2604.8,2604.0,0.7646]
[1727691552527,0.95971,2604.8,2604.0,0.3847]
[1727691552730,3.2078,2604.6,2603.6,2.95]
[1727691552928,0.38401,2604.0,2603.7,0.38403]
[1727691553134,3.2078,2604.3,2603.5,0.7646]
[1727691553327,0.38401,2604.0,2603.7,0.38404]
[1727691553523,3.2078,2604.3,2603.8,0.38402]
[1727691553832,3.2078,2604.3,2603.5,0.7646]
[1727691553833,0.38396,2604.3,2604.0,0.384]
[1727691554433,4.54919,2604.6,2603.6,2.95]
[1727691554627,0.384,2604.0,2603.7,0.38404]
[1727691554928,4.54919,2604.6,2603.6,2.95]
[1727691555131,0.38403,2603.9,2603.3,2.95]
[1727691555336,0.38404,2603.8,2603.5,0.38407]
[1727691555533,0.95993,2604.2,2603.5,0.38407]
[1727691555729,0.38406,2603.7,2603.4,0.38409]
[1727691556035,4.16782,2604.0,2603.2,3.6085]
[1727691556235,0.38405,2603.7,2603.4,0.38408]
[1727691556829,0.95993,2604.2,2603.4,0.38408]
[1727691556830,3.2078,2605.0,2603.7,0.38404]
[1727691557032,3.2078,2605.0,2604.0,2.95]
[1727691557033,0.3678,2604.9,2604.0,2.95]
[1727691557238,3.2078,2604.7,2604.0,2.95]
[1727691557429,3.2078,2604.7,2603.7,0.3955]
[1727691557629,3.2078,2604.7,2603.8,0.38402]
[1727691557828,0.7499,2604.9,2603.7,0.3955]
[1727691557829,3.2078,2604.4,2603.7,0.3955]
[1727691558028,3.2078,2604.4,2603.4,0.38409]
[1727691558229,3.2078,2604.4,2603.6,0.38405]
[1727691558428,3.2078,2604.4,2603.5,0.38407]
[1727691558728,3.2078,2604.4,2603.6,0.38405]
[1727691559032,3.2078,2604.4,2603.3,6.1578]
[1727691559340,3.2078,2604.4,2603.5,0.38407]
[1727691559526,3.2078,2604.1,2603.3,6.1578]
[1727691559836,3.59179,2604.1,2603.5,0.38406]
[1727691560539,0.38401,2604.0,2603.4,0.38408]
[1727691560731,3.59179,2604.1,2603.5,0.38406]
[1727691561629,3.2078,2604.1,2603.4,0.38409]
[1727691561936,3.2078,2604.1,2603.3,6.1578]
[1727691561937,3.2078,2604.1,2603.8,0.38402]
[1727691562728,3.2078,2604.1,2603.3,6.1578]
[1727691562929,0.7691,2604.2,2603.9,0.38401]
[1727691563929,0.3947,2604.2,2603.9,0.38401]
[1727691564131,0.3947,2604.2,2603.6,6.1578]
[1727691564333,3.6095,2604.6,2604.1,0.38398]
[1727691564835,3.6095,2604.6,2604.0,0.38399]
[1727691565232,3.6095,2604.6,2603.6,6.1578]
[1727691565430,3.6095,2604.6,2604.3,0.38395]
[1727691566329,3.6095,2604.6,2604.0,3.344]
[1727691566540,3.6095,2604.6,2604.2,0.38396]
[1727691566832,3.6095,2604.6,2604.0,0.38399]
[1727691567037,3.6095,2604.6,2604.1,0.38398]
[1727691567727,3.6095,2604.6,2604.3,0.38395]
[1727691568140,3.6095,2604.6,2603.9,3.2078]
[1727691568434,3.2078,2605.0,2604.0,6.1578]
[1727691568626,3.2078,2605.0,2603.7,0.3807]
[1727691568627,3.2078,2605.0,2604.9,0.38387]
[1727691568828,3.2078,2605.0,2604.4,3.2078]
[1727691569026,3.2078,2605.0,2604.9,0.38387]
[1727691569232,0.8127,2605.4,2605.0,0.38384]
[1727691569431,0.8127,2605.4,2604.6,0.95977]
[1727691569629,0.8127,2605.4,2605.0,0.38384]
[1727691570233,3.2078,2606.3,2606.1,0.38369]
[1727691570428,3.2078,2606.6,2606.1,0.38368]
[1727691570635,3.2078,2606.6,2605.7,2.95]
[1727691570636,3.2078,2606.6,2606.2,0.38366]
[1727691570837,3.2078,2606.6,2606.3,0.38366]
[1727691571445,3.2078,2606.6,2606.2,0.38367]
[1727691571743,3.2078,2606.6,2605.9,0.38372]
[1727691571936,3.2078,2606.6,2606.2,0.38367]
[1727691572136,3.2078,2606.6,2605.8,3.6076]
[1727691572337,3.2078,2606.6,2606.3,0.38365]
[1727691572534,3.2078,2606.6,2605.9,0.95931]
[1727691572842,3.2078,2606.6,2606.2,0.38367]
[1727691573035,3.2078,2606.6,2606.3,0.38366]
[1727691573536,3.2078,2606.6,2605.9,0.95931]
[1727691573738,3.2078,2606.6,2606.2,0.38367]
[1727691574636,3.2078,2606.3,2605.2,3.2078]
[1727691574838,3.8368,2606.5,2605.3,0.3838]
[1727691574839,3.2078,2606.0,2605.3,0.3838]
[1727691575036,0.3933,2605.9,2604.8,4.95301]
[1727691575235,3.2078,2605.7,2605.1,0.38383]
[1727691575441,3.2078,2605.7,2605.0,0.38385]
[1727691575637,3.2078,2605.7,2604.6,3.2078]
[1727691575832,0.3833,2605.8,2604.2,5.08991]
[1727691575833,3.2078,2605.4,2604.2,4.13]
[1727691576036,3.2078,2605.4,2604.0,7.90328]
[1727691576037,3.2078,2605.1,2604.0,4.95328]
[1727691576245,0.3933,2605.0,2604.1,0.38399]
[1727691576440,0.3933,2605.0,2604.6,0.38391]
[1727691576649,0.3933,2605.0,2604.5,0.38392]
[1727691576849,0.3933,2605.0,2604.4,0.38393]
[1727691577237,0.3933,2605.0,2604.0,7.52508]
[1727691577451,0.3933,2605.0,2604.3,0.38395]
[1727691577754,0.3933,2605.0,2604.0,3.6151]
[1727691578042,0.3933,2605.0,2604.4,0.38394]
[1727691578236,0.3933,2605.0,2604.0,3.6151]
[1727691578434,0.3933,2605.0,2604.4,0.38393]
[1727691579150,3.2078,2605.1,2604.9,0.38386]
[1727691579349,3.2078,2605.1,2604.6,3.32]
[1727691579350,0.3748,2605.3,2605.1,0.38383]
[1727691579548,0.4087,2605.6,2605.2,0.38382]
[1727691579844,0.4087,2605.6,2604.6,6.5278]
[1727691580051,0.4087,2605.6,2605.2,0.38381]
[1727691580351,0.4087,2605.6,2604.6,6.5278]
[1727691580550,0.4087,2605.6,2605.0,0.38385]
[1727691580736,0.4087,2605.6,2605.1,0.38383]
[1727691580943,0.4087,2605.6,2604.6,6.5278]
[1727691581145,0.4087,2605.6,2605.0,0.38385]
[1727691581546,3.2078,2606.4,2605.8,0.38373]
[1727691581746,3.2078,2606.4,2605.7,0.38375]
[1727691582350,3.2078,2606.4,2605.3,3.2078]
[1727691582654,3.2078,2606.4,2605.6,0.38376]
[1727691583048,3.2078,2606.1,2605.3,3.2078]
[1727691583352,3.2078,2606.1,2605.6,0.38376]
[1727691583650,3.2078,2606.1,2605.1,0.8162]
[1727691583854,3.2078,2606.1,2605.5,0.38377]
[1727691584247,3.2078,2606.1,2605.1,0.8162]
[1727691584551,3.2078,2606.1,2605.2,0.38381]
[1727691584745,3.2078,2605.8,2605.0,3.2078]
[1727691584948,3.2078,2605.5,2604.6,3.2078]
[1727691585255,0.376,2605.4,2604.8,0.38388]
[1727691585552,0.376,2605.4,2604.4,0.38394]
[1727691585850,0.376,2605.4,2604.7,0.38389]
[1727691586051,0.376,2605.4,2605.0,0.38384]
[1727691586353,0.376,2605.4,2605.2,0.38382]
[1727691586848,3.2078,2605.5,2605.3,0.3838]
[1727691587049,0.38375,2605.7,2605.4,0.38379]
[1727691587249,0.38377,2605.6,2605.3,0.3838]
[1727691587447,3.2078,2605.9,2604.9,3.2078]
[1727691587644,0.38378,2605.5,2605.2,0.38382]
[1727691587840,3.2078,2605.9,2605.1,0.38383]
[1727691588041,0.38377,2605.6,2605.2,0.38381]
[1727691588450,0.38378,2605.5,2605.2,0.38381]
[1727691588653,0.95937,2605.8,2604.9,3.2078]
[1727691588853,0.38378,2605.5,2605.2,0.38382]
[1727691589453,0.38379,2605.5,2605.2,0.38382]
[1727691590751,0.38379,2605.5,2604.6,7.48758]
[1727691590752,4.79789,2605.5,2604.6,0.3839]
[1727691590949,0.38387,2604.9,2604.6,0.3839]
[1727691591148,3.2078,2605.3,2604.6,0.3839]
[1727691591149,0.9596,2605.1,2604.6,0.3839]
[1727691591348,0.38388,2604.8,2604.6,0.3839]
[1727691591553,0.38388,2604.9,2604.6,0.3839]
[1727691591742,1.3431,2605.1,2604.3,3.2078]
[1727691591949,0.95964,2605.0,2604.3,3.2078]
[1727691592244,0.38391,2604.7,2604.4,0.38393]
[1727691592445,3.59166,2605.0,2604.3,3.2078]
[1727691592648,0.38386,2605.0,2604.8,0.38388]
[1727691592848,0.3835,2605.1,2604.3,4.16768]
[1727691593041,0.38386,2605.0,2604.8,0.38388]
[1727691593246,0.3835,2605.1,2604.3,4.16768]
[1727691593442,0.3835,2605.1,2604.7,0.38389]
[1727691593958,0.3835,2605.1,2604.8,0.38388]
[1727691594646,3.2078,2605.3,2605.0,0.38385]
[1727691595160,3.2078,2605.3,2605.0,0.38384]
[1727691595756,3.2078,2605.3,2605.0,0.38385]
[1727691596358,3.2078,2605.3,2604.7,0.38388]
[1727691596561,0.38385,2605.0,2604.8,0.38387]
[1727691596755,0.95957,2605.2,2604.3,1.35028]
[1727691597160,0.38392,2604.6,2604.4,0.38394]
[1727691597375,0.9596,2605.1,2604.2,3.5828]
[1727691597376,3.2078,2605.0,2604.2,3.5828]
[1727691597661,0.38392,2604.6,2604.4,0.38393]
[1727691598161,0.38394,2604.5,2604.3,0.38395]
[1727691598462,0.38396,2604.3,2604.1,0.38398]
[1727691598853,1.33569,2604.6,2603.8,2.95]
[1727691599054,0.38395,2604.4,2604.2,0.38396]
[1727691599258,0.38395,2604.4,2604.3,0.38396]
[1727691599958,0.7507,2604.6,2603.9,0.96005]
[1727691600261,3.59171,2604.7,2604.6,0.38391]
[1727691600465,3.59171,2604.7,2604.2,0.95992]
[1727691600466,3.2078,2604.7,2604.2,0.95992]
[1727691600660,0.38391,2604.6,2604.2,0.95992]
[1727691601168,0.9598,2604.6,2604.2,0.38396]
[1727691601361,4.16752,2604.8,2604.3,0.38394]
[1727691601362,0.38394,2604.5,2604.3,0.38394]
[1727691601862,0.38394,2604.4,2604.3,0.38394]
[1727691602463,3.2078,2605.2,2604.4,3.8392]
[1727691602764,3.2078,2605.2,2604.6,3.90978]
[1727691602968,3.2078,2605.2,2605.1,0.38384]
[1727691603162,3.2078,2605.2,2604.9,0.38386]
[1727691603163,3.59163,2605.2,2604.9,0.38386]
[1727691603360,3.2078,2605.2,2604.7,0.95973]
[1727691603565,3.2078,2605.2,2605.1,0.38384]
[1727691604963,3.2078,2605.2,2604.8,0.38387]
[1727691605170,0.38384,2605.1,2604.8,0.38388]
[1727691605366,0.38385,2605.0,2604.8,0.38388]
[1727691605565,3.2078,2605.2,2604.5,0.4006]
[1727691605762,0.38387,2604.9,2604.6,0.3839]
[1727691605962,0.38386,2605.0,2604.4,0.95985]
[1727691606163,0.38386,2605.0,2604.7,0.38389]
[1727691606669,4.57347,2605.2,2604.4,0.95985]
[1727691606864,0.38387,2604.9,2604.4,0.95985]
[1727691607066,3.2078,2604.5,2604.0,1.91996]
[1727691607266,3.59173,2604.5,2603.7,4.0091]
[1727691607466,3.2078,2604.5,2603.9,0.96004]
[1727691607670,3.59174,2604.5,2603.9,0.96004]
[1727691607873,0.38392,2604.6,2604.4,0.38394]
[1727691608165,3.578,2604.8,2604.2,0.38397]
[1727691608166,0.38394,2604.5,2604.2,0.38397]
[1727691608562,0.38394,2604.5,2603.9,3.91004]
[1727691608871,0.38394,2604.5,2604.2,0.38396]
[1727691609071,0.38394,2604.4,2604.2,0.38396]
[1727691609260,0.38393,2604.5,2604.3,0.38395]
[1727691609465,0.38393,2604.5,2604.2,0.38396]
[1727691609666,0.38391,2604.6,2604.2,0.38396]
[1727691609969,0.38396,2604.3,2604.1,0.38398]
[1727691610567,3.9728,2604.5,2603.7,1.3614]
[1727691610768,3.9728,2604.5,2602.7,1.62582218]
[1727691610769,3.2078,2604.2,2603.4,0.96021]
[1727691610965,0.3993,2604.1,2603.6,0.96015]
[1727691611161,0.3993,2604.1,2604.0,0.384]
[1727691611966,4.2393,2604.1,2603.4,4.16801]
[1727691612263,0.384,2604.0,2603.8,0.38403]
[1727691612460,0.38402,2603.9,2603.7,0.38404]
[1727691612870,3.8408,2603.8,2603.2,0.9603]
[1727691613074,0.3993,2604.1,2603.7,0.38404]
[1727691613372,0.38401,2604.0,2603.4,0.96023]
[1727691613667,3.2078,2603.9,2603.2,4.1681]
[1727691613862,0.38405,2603.7,2603.0,0.96036]
[1727691614069,0.38405,2603.7,2603.5,0.38407]
[1727691614362,0.38405,2603.7,2603.0,0.96036]
[1727691614363,0.96008,2603.8,2602.7,0.96047]
[1727691614565,3.6098,2603.6,2602.6,4.56371]
[1727691614771,4.56997,2603.6,2602.6,4.5637]
[1727691615070,0.96019,2603.5,2603.0,0.38414]
[1727691615265,0.96019,2603.5,2602.6,4.5637]
[1727691615266,0.38414,2603.1,2602.9,0.38415]
[1727691615472,0.3936,2603.4,2602.6,4.1683]
[1727691615677,0.38412,2603.2,2603.1,0.38413]
[1727691615972,0.3936,2603.4,2602.6,4.1683]
[1727691616173,1.35384,2603.4,2602.6,4.1683]
[1727691616365,0.38413,2603.1,2603.0,0.38414]
[1727691616568,0.38414,2603.1,2603.0,0.38414]
[1727691617066,3.2078,2603.2,2602.6,4.16831]
[1727691617374,0.38415,2603.0,2602.9,0.38415]
[1727691617566,3.59193,2603.2,2603.1,0.38413]
[1727691617765,0.38416,2603.0,2602.9,0.38416]
[1727691618468,0.38427,2602.2,2602.1,0.38427]
[1727691618668,0.96061,2602.4,2601.9,3.2078]
[1727691618971,0.38428,2602.2,2602.1,0.38428]
[1727691619569,0.96061,2602.4,2601.9,3.2078]
[1727691619777,0.38429,2602.1,2602.0,0.38429]
[1727691620274,0.3843,2602.0,2601.9,3.5921]
[1727691620473,0.3843,2602.0,2601.9,3.2078]
[1727691620673,0.3843,2602.0,2601.9,3.59211]
[1727691620875,0.3843,2602.0,2601.9,3.2078]
[1727691621269,7.051,2602.0,2601.4,0.3768]
[1727691621468,1.34309,2602.2,2601.4,0.3768]
[1727691621671,0.38432,2601.9,2601.8,0.38433]
[1727691621870,1.34309,2602.2,2601.4,0.3768]
[1727691622073,0.38431,2601.9,2601.8,0.38432]
[1727691622371,0.3824,2602.2,2602.1,0.38428]
[1727691622573,0.78833,2602.5,2602.3,0.38425]
[1727691622770,0.38424,2602.4,2602.1,0.38427]
[1727691622975,0.4041,2602.5,2601.7,0.96083]
[1727691623172,0.38424,2602.4,2602.2,0.38426]
[1727691623368,0.38424,2602.4,2601.7,0.96083]
[1727691623670,0.4041,2602.5,2601.8,0.96082]
[1727691623874,0.78833,2602.5,2602.3,0.38425]
[1727691624978,0.3824,2602.7,2602.5,0.38421]
[1727691625276,0.3824,2602.7,2602.6,0.38421]
[1727691625672,0.38414,2603.1,2602.3,3.2078]
[1727691625975,0.38414,2603.1,2602.9,0.38416]
[1727691626176,0.38414,2603.1,2602.5,0.96056]
[1727691626177,0.38415,2603.0,2602.8,0.38417]
[1727691626670,3.5819,2603.2,2602.4,0.96058]
[1727691626864,3.5819,2603.2,2602.4,1.35598]
[1727691627071,3.96602,2603.2,2603.0,0.38414]
[1727691627277,3.5819,2603.2,2603.1,0.38413]
[1727691627467,3.5819,2603.2,2602.7,0.96049]
[1727691627670,3.96602,2603.2,2603.0,0.38414]
[1727691628072,3.96602,2603.2,2602.7,0.96049]
[1727691628073,3.5819,2603.2,2602.7,0.96049]
[1727691628272,3.5819,2603.2,2603.0,0.38414]
[1727691628470,3.5819,2603.2,2602.6,3.2078]
[1727691628471,3.96603,2603.2,2602.6,3.2078]
[1727691628677,3.96602,2603.2,2603.0,0.38414]
[1727691628873,3.5819,2603.2,2603.0,0.38414]
[1727691629075,3.96603,2603.2,2603.0,0.38414]
[1727691629782,3.5819,2603.2,2602.6,3.2078]
[1727691630077,3.5819,2603.2,2602.4,1.35598]
[1727691630078,0.38416,2602.9,2602.8,0.38417]
[1727691630279,0.38415,2603.0,2602.5,1.34478]
[1727691630478,0.96037,2603.1,2602.4,0.3954]
[1727691630778,0.96037,2603.1,2602.7,0.38419]
[1727691630779,0.38418,2602.8,2602.7,0.38419]
[1727691631076,0.38419,2602.7,2602.6,0.38419]
[1727691631679,0.38418,2602.8,2602.7,0.38418]
[1727691631975,0.96039,2603.0,2602.6,0.38419]
[1727691632280,0.3842,2602.7,2602.6,0.38421]
[1727691632874,3.5819,2603.2,2602.3,0.3795]
[1727691633080,0.38419,2602.8,2602.6,0.3842]
[1727691633381,0.38419,2602.8,2602.3,0.3795]
[1727691633382,3.2078,2602.9,2602.3,0.3795]
[1727691633578,0.38426,2602.3,2602.2,0.38426]
[1727691633780,0.38426,2602.3,2602.1,3.59207]
[1727691633972,0.96054,2602.6,2602.1,3.2078]
[1727691634174,0.38427,2602.2,2602.0,0.38429]
[1727691634371,0.38427,2602.2,2601.8,0.3949]
[1727691634372,0.38427,2602.2,2602.1,0.38428]
[1727691634777,0.3843,2602.0,2601.9,0.3843]
[1727691634977,0.38429,2602.1,2601.9,0.3843]
[1727691635380,0.38429,2602.1,2601.8,0.3949]
[1727691635381,0.3843,2602.0,2601.8,0.38432]
[1727691635680,0.38431,2602.0,2601.8,0.38431]
[1727691635981,0.38427,2602.2,2601.7,0.38433]
[1727691636177,0.38433,2601.8,2601.7,0.38433]
[1727691636379,3.2078,2602.0,2601.4,0.3781]
[1727691636680,0.38427,2602.2,2601.4,0.3781]
[1727691636681,0.38427,2602.2,2601.5,0.96093]
[1727691636876,3.2078,2602.2,2602.1,0.38428]
[1727691637082,3.59208,2602.2,2602.0,0.38429]
[1727691637482,7.051,2602.2,2601.4,1.33904]
[1727691637681,3.2078,2602.2,2601.4,1.33904]
[1727691637883,3.2078,2602.2,2601.4,0.3781]
[1727691638187,0.38429,2602.1,2601.9,0.3843]
[1727691638882,3.5888,2602.5,2601.6,0.38434]
[1727691638883,0.38432,2601.9,2601.6,0.38434]
[1727691639084,0.38432,2601.9,2601.7,0.38434]
[1727691639478,1.35521,2602.1,2601.6,0.38434]
[1727691639776,0.38433,2601.8,2601.6,0.38434]
[1727691639979,3.2078,2601.9,2601.3,3.2078]
[1727691640184,0.38436,2601.6,2601.4,0.38437]
[1727691641282,0.38435,2601.7,2601.5,0.38436]
[1727691641489,0.3859,2601.8,2601.3,3.2078]
[1727691641684,0.38435,2601.7,2601.3,3.2078]
[1727691641985,0.3859,2601.8,2601.3,3.2078]
[1727691642374,0.38437,2601.6,2601.5,0.38437]
[1727691642986,0.3859,2601.8,2601.3,3.2078]
[1727691643188,0.38435,2601.7,2601.6,0.38435]
[1727691643685,0.38436,2601.6,2601.5,0.38436]
[1727691644390,0.38435,2601.7,2601.6,0.38434]
[1727691644784,4.22835,2601.7,2601.6,0.38434]
[1727691645494,0.77023,2601.8,2601.7,0.38434]
[1727691645690,0.77023,2601.8,2601.3,4.16879]
[1727691645986,0.38435,2601.7,2601.6,0.38434]
[1727691646587,0.3859,2601.8,2601.3,4.16879]
[1727691646784,0.3945,2602.1,2601.7,0.38434]
[1727691646984,0.4012,2602.3,2602.2,0.38427]
[1727691647786,0.4012,2602.3,2602.1,0.38427]
[1727691647979,0.4012,2602.3,2601.7,1.74834]
[1727691648187,0.38429,2602.1,2602.0,0.38428]
[1727691648985,0.38428,2602.2,2602.1,0.38427]
[1727691649588,0.38429,2602.1,2602.0,0.38429]
[1727691649800,0.38428,2602.2,2602.1,0.38428]
[1727691650193,3.59208,2602.2,2602.1,0.38428]
[1727691650386,3.59207,2602.2,2602.1,0.38428]
[1727691650690,7.43527,2602.2,2602.1,0.38428]
[1727691650887,3.59207,2602.2,2602.1,0.38428]
[1727691651392,3.2078,2602.2,2602.1,0.38428]
[1727691651885,0.4012,2602.3,2601.7,0.7899]
[1727691652086,0.38421,2602.6,2602.0,0.96075]
[1727691652295,3.5947,2602.7,2602.4,0.38423]
[1727691652592,0.38424,2602.4,2602.3,0.38424]
[1727691653690,0.38421,2602.6,2602.5,0.38422]
[1727691653989,0.38423,2602.5,2602.3,0.38424]
[1727691654294,0.38423,2602.5,2602.4,0.38424]
[1727691654589,4.55521,2602.7,2602.0,0.96075]
[1727691654590,3.5947,2602.7,2602.0,0.96075]
[1727691654795,3.9789,2602.7,2602.6,0.38421]
[1727691654993,7.8213,2602.7,2602.5,0.38421]
[1727691655194,3.9789,2602.7,2602.3,0.96064]
[1727691655382,3.9789,2602.7,2602.6,0.38421]
[1727691655584,3.9789,2602.7,2602.2,0.96066]
[1727691655880,0.38422,2602.5,2602.4,0.38423]
[1727691656088,0.38423,2602.5,2602.4,0.38423]
[1727691656291,0.38422,2602.5,2602.4,0.38423]
[1727691656482,3.5947,2602.7,2602.1,0.9607]
[1727691656687,0.38421,2602.6,2602.5,0.38422]
[1727691656883,0.38421,2602.6,2602.2,0.96067]
[1727691657091,0.38421,2602.6,2602.4,0.38423]
[1727691657490,0.38422,2602.5,2602.4,0.38423]
[1727691657686,0.38422,2602.6,2602.4,0.38422]
[1727691657893,0.38422,2602.6,2602.2,0.38427]
[1727691658190,0.38421,2602.6,2602.5,0.38421]
[1727691658699,3.5947,2602.7,2602.2,0.96067]
[1727691658989,3.9789,2602.7,2602.6,0.38421]
[1727691659597,3.9789,2602.7,2602.5,0.38421]
[1727691659598,0.38421,2602.6,2602.5,0.38421]